Workbook

Sheet Salim
F2: برنامج مطابقة اشعار الحساب الجاري العام
D6: 1 | E6: 2 | F6: 3 | G6: 4 | H6: 5 | I6: 6 | J6: 7 | K6: 8 | L6: 9 | M6: 10 | N6: 11 | O6: 12 | P6: 13 | Q6: 14 | R6: 15 | S6: 16 | T6: 17 | U6: 18 | V6: 19 | W6: 20 | X6: 21 | Y6: 22 | Z6: 23 | AA6: 24 | AB6: 25 | AC6: 26 | AD6: 27 | AE6: 28 | AF6: 29 | AG6: 30 | AH6: 31 | AI6: 32 | AJ6: 61 | AK6: 62 | AL6: 63 | AM6: 33 | AN6: 34 | AO6: 35 | AP6: 36 | AQ6: 37 | AR6: 38 | AS6: 39 | AT6: 40 | AU6: 41 | AV6: 42 | AW6: 43 | AX6: 44 | AY6: 45 | AZ6: 46 | BA6: 47 | BB6: 48 | BC6: 49 | BD6: 50 | BE6: 51 | BF6: 52 | BG6: 53 | BH6: 54 | BI6: 55 | BJ6: 56 | BK6: 57 | BL6: 58 | BM6: 59 | BN6: 60 | BO6: 64 | BP6: 65 | BQ6: 66 | BR6: 67 | BS6: 68
A8: ت | C8: اسم الموظف | D8: استقطاع (4) 10 مليون العمارة 9 | E8: استقطاع (4)10 مليون بلدروز | F8: استقطاع (4) 100 راتب البحيرة 311 | G8: استقطاع (4)100 راتب مقدادية | H8: استقطاع (4)30 مليون صلاح الدين | I8: استقطاع (1) صندوق تربية | J8: استقطاع 2 5 مليون فاروق | K8: استقطاع (4) 10 مليون فاروق | L8: استقطاع (4) 5 مليون بلدروز | M8: استقطاع (4) الرشيد اشنونا سيارات | N8: استقطاع (4) سيارات بعقوبة | O8: استقطاع (4) لصناعة المواد الانشائية | P8: استقطاع (4) نقابة المعلمين | Q8: استقطاع (4)5 مليون 14 بعقوبة | R8: استقطاع 5 رعاية | S8: استقطاع 6 رسم طابع | T8: استقطاع (4) 100 راتب 14 بعقوبة | U8: استقطاع (4) اربعة مصرف الثقة | V8: استقطاع(3) مئة راتب فاروق | W8: التامين مصرف 14 بعقوبة | X8: التامين مصرف الفاروق | Y8: استقطاع (4)الرافدين المحيط بغداد | Z8: المصرف الزراعي الخالص | AA8: المصرف الزراعي المقدادية | AB8: المصرف الزراعي بعقوبة | AC8: المصرف الزراعي هبهب | AD8: امانات متنوعة صندوق اسكان | AE8: ايراد نهائي | AF8: بدل ايجار | AG8: تامين البحيرة | AH8: تامين المقدادية | AI8: تامين صلاح الدين | AJ8: تنفيذ كاظمية | AK8: تنفيذ الرصافة | AL8: تنفيذ الحلة | AM8: تنفيذ ابي صيدا | AN8: تنفيذ البياع | AO8: تنفيذ الخالص | AP8: تنفيذ الزهور | AQ8: تنفيذ العزيزية | AR8: تنفيذ بعقوبة | AS8: تنفيذ بلدروز | AT8: تنفيذ خان بني سعد | AU8: توقيفات تقاعدية | AV8: استقطاع (4) رافدين 311 سيارات | AW8: استقطاع (4)سلفة زواج فاروق | AX8: سلفة متنوعة | AY8: استقطاع (4)شركة ديالى | AZ8: ضريبة دخل | BA8: عقاري | BB8: استقطاع (4) قرض اسكان بلدروز | BC8: استقطاع (4)مصرف الرافدين العلوية | BD8: استقطاع 5 فرع الهندية | BE8: تنفيذ الدورة | BF8: تنفيذ كربلاء | BG8: استقطاع (4) 30 مليون فاروق | BH8: استقطاع (4) 5 مليون مصرف رافدين | BI8: استقطاع (4) مديرية زراعة ديالى | BJ8: استقطاع (4) 10 مليون مقدادية | BK8: استقطاع (4) رشيد شنونا 10 مليون | BL8: استقطاع (4)جامعة ديالى قسم الشؤون المالية | BM8: استقطاع (4) فرع الاعظمية 10 مليون | BN8: استقطاع (4) 30 مليون المقدادية | BO8: استقطاع (4)المصرف العراقي للتجارة/ النجف الاشرف | BP8: استقطاع(4) سلفة زواج صندوق التربية | BQ8: تنفيذ جلولاء | BR8: استقطاع(4) 5مليون حذيفة بن اليمان | BS8: استقطاع(4)10 مليون رافدين 14
A9: 10 | C9: احمد حميد | I9: 611000 | J9: 102395 | Q9: 409580 | R9: 782685 | T9: 445371 | W9: 20833 | AB9: 620400 | AC9: 640400 | AD9: 130860 | AE9: 123000 | AR9: 1477890 | AT9: 176250 | AU9: 31736220 | AX9: 219731 | AZ9: 11638116 | BA9: 1221750 | CB9: =SUMif -> 
A10: 14 | C10: اسيل خليل | I10: 592000 | J10: 307185 | K10: 1228752 | O10: 73250 | R10: 790459 | AB10: 1176750 | AD10: 305052 | AR10: 489450 | AU10: 31958400 | AZ10: 13371973 | BA10: 1335250
A11: 23 | C11: اشواق رزوقي | I11: 518000 | J11: 204790 | K11: 409584 | Q11: 102395 | R11: 585623 | Z11: 620000 | AB11: 234822 | AD11: 384420 | AE11: 250000 | AO11: 924483 | AR11: 553631 | AS11: 233000 | AU11: 23477500 | AZ11: 5901735 | BA11: 1105500 | BK11: 192084
A12: 9 | C12: امجد حميد | H12: 131329 | I12: 634000 | K12: 614376 | R12: 798545 | U12: 650000 | V12: 721500 | X12: 33750 | AB12: 1338100 | AD12: 127150 | AE12: 476041 | AI12: 6200 | AQ12: 129060 | AR12: 1545570 | AU12: 32105200 | AX12: 231570 | AZ12: 11510388 | BA12: 372000 | BP12: 104167
A13: 20 | C13: بيداء فارس | I13: 599000 | K13: 614376 | R13: 849509 | V13: 846204 | W13: 39583 | AE13: 414004 | AR13: 103000 | AU13: 34874300 | AZ13: 16344874 | BA13: 1724000 | BL13: 248800
A14: 7 | C14: حسام الدين طه محسن | I14: 347000 | R14: 411253 | T14: 374111 | X14: 17500 | AE14: 273468 | AR14: 206000 | AU14: 16612300 | AX14: 677100 | AZ14: 4684272
A15: 19 | C15: حسام رشيد | I15: 682000 | J15: 102395 | K15: 819168 | Q15: 204790 | R15: 853214 | V15: 329575 | X15: 15417 | AC15: 877900 | AE15: 304253 | AM15: 309000 | AR15: 1970210 | AT15: 80200 | AU15: 34968300 | AW15: 104000 | AX15: 338000 | AZ15: 12140261 | BA15: 713750 | BI15: 100000 | BM15: 204792 | BN15: 269166
A16: 15 | C16: حسين صكبان | D16: 204792 | F16: 331000 | I16: 668000 | K16: 819168 | R16: 857465 | V16: 890742 | X16: 41666 | AA16: 109225 | AB16: 1312600 | AD16: 327150 | AE16: 150002 | AF16: 81400 | AR16: 1833110 | AU16: 34618226 | AZ16: 12537141 | BA16: 1291250 | BC16: 420000
A17: 25 | C17: سلام إبراهيم | G17: 322448 | I17: 633000 | M17: 409639 | R17: 812592 | S17: 1000 | AC17: 1031325 | AE17: 100002 | AH17: 15000 | AU17: 32874173 | AX17: 100000 | AZ17: 11090080 | BA17: 53000
A18: 12 | C18: سهاد نبهان جلوب | I18: 504000 | J18: 307185 | K18: 819168 | R18: 648871 | AE18: 1 | AR18: 757778 | AU18: 26562750 | AX18: 80725 | AZ18: 9944918 | BA18: 744500 | BJ18: 192084 | BR18: 308945
A19: 3 | C19: شاكر علي | I19: 546000 | K19: 614376 | Q19: 102395 | R19: 678024 | AE19: 225002 | AU19: 27539800 | AX19: 48000 | AZ19: 10172728 | BA19: 301750
A20: 2 | C20: طلبة عبد جسام | I20: 485000 | J20: 204790 | K20: 409584 | N20: 654000 | Q20: 192166 | R20: 549493 | T20: 267223 | W20: 12500 | AE20: 311000 | AN20: 90000 | AO20: 226600 | AR20: 674140 | AU20: 22426000 | AV20: 520000 | AZ20: 6351202 | BA20: 560000 | BQ20: 110000
A21: 6 | C21: عذراء علي عبد | F21: 407069 | I21: 593000 | R21: 737937 | T21: 391926 | V21: 419688 | W21: 18333 | X21: 18750 | AB21: 388400 | AD21: 145400 | AE21: 609450 | AG21: 19042 | AM21: 268697 | AO21: 67000 | AR21: 149170 | AT21: 157824 | AU21: 30283300 | AZ21: 10330535 | BA21: 587000 | BB21: 133611 | BC21: 420000
A22: 1 | C22: فاتن عبد العزيز | G22: 445371 | I22: 489000 | M22: 409639 | R22: 643393 | V22: 400833 | X22: 18750 | AD22: 127150 | AE22: 150011 | AH22: 2085 | AU22: 26130500 | AZ22: 9983794 | BA22: 1334750
A23: 21 | C23: قسمه حميد | I23: 577000 | J23: 102395 | K23: 204792 | Q23: 102395 | R23: 694222 | V23: 445371 | X23: 20833 | AD23: 408750 | AE23: 154600 | AF23: 19000 | AO23: 20600 | AR23: 273620 | AU23: 28115550 | AV23: 1007000 | AZ23: 9372202 | BA23: 1092500 | BG23: 410258
A24: 24 | C24: ليلى علي حميد | I24: 567000 | K24: 204792 | M24: 436655 | P24: 127580 | R24: 747844 | V24: 445371 | X24: 20833 | AC24: 119320 | AD24: 326056 | AE24: 458104 | AJ24: 288780 | AK24: 407610 | AR24: 1255595 | AU24: 30194800 | AZ24: 12269591 | BA24: 880000 | BS24: 204792
A25: 26 | C25: محمد تعبان محمد | I25: 610000 | J25: 102395 | K25: 409584 | Q25: 204790 | R25: 764651 | T25: 445371 | W25: 20833 | AD25: 145400 | AE25: 932127 | AL25: 195700 | AO25: 123600 | AP25: 362450 | AR25: 1744530 | AU25: 31689250 | AV25: 340000 | AZ25: 10439010 | BA25: 963000 | BC25: 519000 | BO25: 322675
A26: 17 | C26: محمد خالد | E26: 204792 | I26: 655000 | K26: 614376 | M26: 568958 | Q26: 102395 | R26: 764507 | T26: 445371 | V26: 445371 | W26: 20833 | X26: 20833 | Y26: 204792 | AA26: 252227 | AB26: 520000 | AE26: 196001 | AO26: 128750 | AR26: 1097250 | AU26: 31289589 | AX26: 534701 | AZ26: 9186999 | BA26: 983000 | BJ26: 269166
A27: 22 | C27: محمد عبد فليح | I27: =337000+83333 -> 420333 | K27: 614376 | Q27: 102395 | R27: 374759 | AC27: 469075 | AE27: 189791 | AU27: 15118600 | AZ27: 3233540 | BA27: 527500
A28: 16 | C28: مصطفى كريم | I28: 650000 | J28: 409580 | K28: 819168 | M28: 409639 | N28: 351012 | R28: 787431 | U28: 365000 | V28: 400833 | X28: 18750 | AB28: 890000 | AE28: 483596 | AF28: 49500 | AR28: 1618890 | AS28: 154500 | AT28: 623440 | AU28: 32151423 | AX28: 340000 | AY28: 100000 | AZ28: 9224458 | BA28: 1065500 | BC28: 519000
A29: 11 | C29: نضال إبراهيم | I29: 506000 | K29: 614376 | M29: 409639 | R29: 612374 | V29: 445371 | X29: 20833 | AE29: 1107667 | AR29: 725670 | AU29: 24923600 | AX29: 60000 | AZ29: 8319417 | BA29: 368000
A30: 5 | C30: نورة علاء حسين | I30: 567000 | K30: 819168 | Q30: 294561 | R30: 721552 | T30: 641344 | U30: 510000 | X30: 17500 | AD30: 145400 | AE30: 599002 | AR30: 179630 | AU30: 29553633 | AW30: 104000 | AX30: 103620 | AZ30: 11201373 | BA30: 745500
A31: 18 | C31: نوفل محمد إسماعيل | I31: 660000 | K31: 409584 | R31: 905600 | V31: 1576613 | X31: 73749 | AD31: 145400 | AE31: 314463 | AR31: 1870981 | AU31: 36831100 | AZ31: 15421396 | BA31: 776500
A32: 8 | C32: هشام محي رشيد | I32: 375000 | J32: 204790 | K32: 1023960 | R32: 489274 | AD32: 97480 | AR32: 197300 | AU32: 19729800 | AX32: 232910 | AZ32: 7850757 | BA32: 186000
A33: 4 | C33: وسام فاضل | I33: 586000 | J33: 409580 | K33: 2252712 | L33: 102396 | N33: 180960 | R33: 691029 | U33: 225000 | V33: 890742 | X33: 41666 | Z33: 450175 | AB33: 1051650 | AD33: 127150 | AE33: 1164401 | AO33: 177910 | AP33: 100000 | AR33: 359660 | AU33: 27911116 | AV33: 192420 | AX33: 110593 | AZ33: 9504096 | BA33: 1422500
A34: 13 | C34: وسام احمد جواد | I34: 461000 | N34: 376000 | R34: 616817 | T34: 1104517 | U34: 510000 | W34: 52499 | AE34: 281000 | AR34: 1337130 | AU34: 24672850 | AZ34: 10308330 | BA34: 1065000
A35: 27
A36: 28
A37: 29
A38: 30
A39: 31
A40: 32
A41: 33
A42: 34
A43: 35
A44: 36
A45: 37
A46: 38
A47: 39
A48: 40
D65: =SUM(D9:D64) -> 204792 | E65: =SUM(E9:E64) -> 204792 | F65: 738069 | G65: 767819 | H65: =SUM(H9:H64) -> 131329 | I65: 14535333 | J65: 2457480 | K65: =SUM(K9:K64) -> 14335440 | L65: 102396 | M65: 2644169 | N65: 1561972 | O65: 73250 | P65: 127580 | Q65: 1817862 | R65: 18169123 | S65: 1000 | T65: 4115234 | U65: 2260000 | V65: 8258214 | W65: 185414 | X65: =SUM(X9:X64) -> 380830 | Y65: 204792 | Z65: 1070175 | AA65: 361452 | AB65: 7532722 | AC65: 3138020 | AD65: 2942818 | AE65: 9266986 | AF65: 149900 | AG65: 19042 | AH65: 17085 | AI65: 6200 | AJ65: =SUM(AJ9:AJ64) -> 288780 | AK65: =SUM(AK9:AK64) -> 407610 | AL65: =SUM(AL9:AL64) -> 195700 | AM65: 577697 | AN65: 90000 | AO65: 1668943 | AP65: 462450 | AQ65: 129060 | AR65: 20420205 | AS65: 387500 | AT65: 1037714 | AU65: 738348280 | AV65: 2059420 | AW65: 208000 | AX65: 3076950 | AY65: 100000 | AZ65: 262333186 | BA65: 21419500 | BB65: 133611 | BC65: 1878000 | BD65: 0 | BE65: 0 | BF65: 0 | BG65: 410258 | BH65: 0 | BI65: 100000 | BJ65: 461250 | BK65: 192084 | BL65: 248800 | BM65: =SUM(BM9:BM64) -> 204792 | BN65: 269166 | BO65: 322675 | BP65: 104167 | BQ65: =SUM(BQ9:BQ64) -> 110000 | BR65: =SUM(BR9:BR64) -> 308945 | BS65: 204792 | BT65: 0
J74: 2457480
